Cogmind - Beta 15 @@@ ROGUE MODE // 2025.08.09 @ 18:12:59 Player: lvl5hm Result: Destroyed by Lightning with EMDS Performance ------------- Evolutions (4) 2000 Regions Visited (14) 2800 Robots Destroyed (218) 1090 Value Destroyed (7832) 7832 Prototype IDs (11) 220 Alien Tech Used (0) 0 Bonus (1696) 1696 TOTAL SCORE: 15638 Bonus ------- High Alert Combat Kills 163 Follower Combat Kills 1202 Network Hubs Disabled 200 Met Imprinter 300 Met R17 at Cetus 500 Friendly Fire -669 Cogmind --------- Core Integrity 0/850 Matter 239/300 Energy 100/100 System Corruption 18% Temperature Cool (0) Movement Core (50) Location -6/Hub_04(d) Parts ------- > --- POWER (1) -------- (None) > --- PROPULSION (4) --- (None) > --- UTILITY (6) ------ (None) > --- WEAPON (4) ------- (None) > --- INVENTORY (5) ---- Quantum Reactor Large Matter Pod (150) Experimental Thermal Shield Proton Cannon Heavy Plasma Cannon Peak State ------------ > --- POWER ------------ Angular Momentum Engine > --- PROPULSION ------- Flexi-carbon Leg Flexi-carbon Leg Armored Leg Enhanced Flexi-carbon Leg > --- UTILITY ---------- Large Storage Unit Enhanced Optical Array Improved Signal Interpreter Advanced Targeting Computer Centrium Medium Armor Plating Centrium Medium Armor Plating > --- WEAPON ----------- Improved Heavy Machine Gun KE Penetrator Advanced KE Penetrator Advanced KE Penetrator > --- INVENTORY -------- Quantum Reactor Carbon-fiber Leg Improved Carbon-fiber Leg Large Matter Pod Improved Sensor Array Centrium Medium Armor Plating Experimental Thermal Shield Proton Cannon Heavy Plasma Cannon Improved Heavy Machine Gun KE Penetrator Missile Launcher [Rating: 91] Favorites ----------- Power Improved Deuterium Engine Engine Improved Deuterium Engine Power Core Neutrino Core Propulsion Armored Huge Wheel Treads Light Treads Leg Flexi-carbon Leg Wheel Armored Huge Wheel Utility Large Storage Unit Device Improved Sensor Array Storage Large Storage Unit Processor Improved Signal Interpreter Hackware Hacking Suite Protection Hardened Medium Armor Plating Weapon Improved Assault Rifle Energy Gun Spread Laser Energy Cannon Heavy Plasma Cannon Ballistic Gun Improved Assault Rifle Ballistic Cannon Heavy Flak Cannon Launcher Grenade Launcher Impact Weapon Flail Slashing Weapon Great Axe Build | -11 -10 -9 -9 -8 -7 -7 -7 -7 -6 -6 -6 -6 -6 -6 ------- Run | Yrd Mat Mat Sto Mat Fac Low Low Zio Pro Fac Ext Cet Arc Hub Slots Evolved 8 | . . 2 . 2 2 . . . . 2 . . . . Power . | . . . . . . . . . . . . . . . Propulsion 2 | . . . . 1 . . . . . 1 . . . . Utility 4 | . . 1 . 1 1 . . . . 1 . . . . Weapon 2 | . . 1 . . 1 . . . . . . . . . Parts Attached 156 | 6 2 28 22 16 20 3 . . 3 12 22 5 12 5 Power 19 | 1 . 5 4 2 1 . . . . 2 2 . 1 1 Engine 15 | 1 . 5 3 2 1 . . . . 1 1 . . 1 Core 4 | . . . 1 . . . . . . 1 1 . 1 . Reactor . | . . . . . . . . . . . . . . . Propulsion 29 | 2 . 3 6 2 3 1 . . . . 9 . 1 2 Treads 12 | 2 . 3 6 1 . . . . . . . . . . Leg 13 | . . . . . 2 . . . . . 8 . 1 2 Wheel 4 | . . . . 1 1 1 . . . . 1 . . . Hover . | . . . . . . . . . . . . . . . Flight . | . . . . . . . . . . . . . . . Utility 52 | 1 2 9 4 7 5 1 . . 2 3 9 3 6 . Device 19 | . . 5 1 2 2 1 . . 1 1 2 . 4 . Storage 4 | 1 1 . . 1 . . . . . . . . 1 . Processor 4 | . . . 1 . 1 . . . . 1 . . 1 . Hackware 1 | . . . . 1 . . . . . . . . . . Protection 24 | . 1 4 2 3 2 . . . 1 1 7 3 . . Artifact . | . . . . . . . . . . . . . . . Weapon 56 | 2 . 11 8 5 11 1 . . 1 7 2 2 4 2 Energy Gun 7 | 1 . 5 . . . . . . 1 . . . . . Energy Cannon 3 | . . 1 . . . . . . . 1 . . . 1 Ballistic Gun 40 | 1 . 4 7 5 8 1 . . . 6 1 2 4 1 Ballistic Cannon 1 | . . . . . . . . . . . 1 . . . Launcher 3 | . . 1 1 . 1 . . . . . . . . . Special Weapon . | . . . . . . . . . . . . . . . Impact Weapon 1 | . . . . . 1 . . . . . . . . . Slashing Weapon 1 | . . . . . 1 . . . . . . . . . Piercing Weapon . | . . . . . . . . . . . . . . . Special Melee Weapon . | . . . . . . . . . . . . . . . Unidentified Prototypes 11 | . . . 3 1 . . . . . 2 . 2 2 1 Corrupted Parts 2 | . . . . . . . . . . . . . 2 . System Corruption 10 | . . . . . . . . . . . . . 10 . Parts Lost 12 | . . . . 1 . . . . 1 . 1 . . 9 Power 1 | . . . . . . . . . . . . . . 1 Propulsion 3 | . . . . . . . . . . . . . . 3 Utility 4 | . . . . 1 . . . . 1 . 1 . . 1 Weapon 4 | . . . . . . . . . . . . . . 4 Highest Loss Streak 9 | . . . . 1 . . . . 1 . 1 . . 9 To Critical Strikes . | . . . . . . . . . . . . . . . Average Backups 13 | . 2 12 14 13 13 14 14 13 13 14 13 14 14 14 Power 1 | . 1 2 1 1 1 1 1 1 1 1 1 1 1 1 Propulsion 1 | . . 1 2 1 1 2 2 2 2 2 1 1 1 2 Utility 5 | . . 3 4 4 5 6 6 5 5 5 6 7 6 4 Weapon 5 | . . 5 5 6 5 5 5 5 5 5 5 5 5 5 Tool/Special . | . . . . . . . . . . . . . . . Unused Backups 30 | . . 5 4 3 4 . . 1 . 5 . 3 2 3 Power 6 | . . 2 . . . . . . . 1 . 2 . 1 Propulsion 4 | . . . . 1 . . . . . 2 . 1 . . Utility 15 | . . 1 2 2 4 . . 1 . 2 . . 2 1 Weapon 5 | . . 2 2 . . . . . . . . . . 1 Tool/Special . | . . . . . . . . . . . . . . . Average Slot Usage (%) 92 | . 90 98 99 84 90 92 92 92 92 85 91 100 98 95 Engine 5 | . 14 11 8 9 7 7 7 7 7 2 2 . . . Core 1 | . . . 2 . . . . . . 3 3 6 6 4 Treads 4 | . 28 22 22 3 1 . . . . . . . . . Leg 8 | . . . . . 5 6 7 7 7 . 9 26 26 25 Wheel 5 | . . . . 8 7 7 7 7 7 12 8 . . . Device 8 | . . 10 8 7 7 7 7 7 7 15 6 13 9 7 Storage 7 | . 14 11 11 9 7 7 7 7 7 6 6 6 6 5 Processor 11 | . . . 2 9 13 15 15 15 14 10 13 13 16 19 Protection 8 | . 4 10 11 10 7 7 7 7 7 6 12 6 4 4 Energy Gun 2 | . 14 20 . . . . . . . . . . . . Ballistic Gun 24 | . 14 11 32 27 25 30 27 29 29 23 25 26 21 22 Peak Build Rating 91 | 6 7 17 24 36 51 50 51 51 53 73 74 84 88 91 Average Rating 51 | 4 6 13 18 33 45 49 50 50 52 66 69 80 82 81 On Entrance 43 | . 6 7 15 24 34 50 50 50 51 50 72 73 84 86 Naked Turns 26 | . . . . . . . . . . . . . . 26 Heaviest Build 77 | 13 33 40 41 47 52 54 55 52 62 62 70 68 77 70 Greatest Support 84 | 40 40 43 43 60 28 28 28 28 28 56 71 71 76 84 Greatest Overweight (x) 2 | 1 . . 1 1 1 1 1 1 2 1 2 . 1 . Average Overweight (x) . | . . . . . 1 1 1 1 1 . . . . . Largest Inventory Capacity 15 | 8 15 15 15 15 15 15 15 15 15 15 15 15 15 15 Average Capacity 14 | 6 12 15 15 15 15 15 15 15 15 15 15 15 15 14 Most Carried 15 | 1 4 15 15 15 15 15 15 15 15 15 15 15 15 15 Average Carried 14 | . 2 12 14 14 14 15 15 14 14 14 14 14 14 14 Final Capacity 15 | 8 15 15 15 15 15 15 15 15 15 15 15 15 15 5 Final Carried 15 | 1 4 15 15 15 15 15 15 15 14 15 15 15 15 5 Class Distribution -------------------- 28% | Skirmisher 18% | Tank 17% | Scavenger-Tank 13% | Gunner 9% | Commander-Tank 7% | Scavenger-Skirmisher 3% | Mutant Dominant Class ---------------- Mutant | -10/Materials Scavenger-Tank | -9/Materials Scavenger-Tank | -9/Storage Tank | -8/Materials Gunner | -7/Factory Skirmisher | -7/Lower Caves Skirmisher | -7/Lower Caves Skirmisher | -7/Zion Skirmisher | -6/Proximity Caves Skirmisher | -6/Factory Commander-Tank | -6/Extension Commander-Tank | -6/Cetus Scavenger-Tank | -6/Archives Scavenger-Skirmisher | -6/Hub_04(d) Resources | -11 -10 -9 -9 -8 -7 -7 -7 -7 -6 -6 -6 -6 -6 -6 ----------- Run | Yrd Mat Mat Sto Mat Fac Low Low Zio Pro Fac Ext Cet Arc Hub Matter Collected 7430 | 254 . 511 767 773 736 209 76 10 271 519 1787 462 274 781 Remotely . | . . . . . . . . . . . . . . . Salvage Created 9785 | 72 . 1155 1311 1363 758 239 57 . 242 782 1782 268 645 1111 Parts 493 | . . 72 76 71 36 15 2 . 10 41 77 12 23 58 Haulers Intercepted 19 | . . 1 5 5 1 . . . . 3 3 . . 1 Recyclers Shooed 3 | . . . 1 . . . . . . 2 . . . . Parts Field Recycled . | . . . . . . . . . . . . . . . Retrieved Matter . | . . . . . . . . . . . . . . . Parts Self-Destructed 24 | . . . . . . 11 2 . 11 . . . . . Prevented . | . . . . . . . . . . . . . . . Kills | -11 -10 -9 -9 -8 -7 -7 -7 -7 -6 -6 -6 -6 -6 -6 ------- Run | Yrd Mat Mat Sto Mat Fac Low Low Zio Pro Fac Ext Cet Arc Hub Combat Hostiles Destroyed 150 | . . 29 23 17 12 4 1 . 4 7 29 5 1 18 Guns 134 | . . 21 23 17 11 4 1 . 4 7 22 5 1 18 AOE 16 | . . 8 . . 1 . . . . . 7 . . . Classes Destroyed 16 | 1 . 8 4 1 1 1 . . . . . . . . Worker 11 | . . 2 3 1 1 . . . . . 2 . . 2 Builder 9 | . . 1 . . 1 . . . . 1 3 . . 3 Hauler 19 | . . 1 5 5 1 . . . . 3 3 . . 1 Recycler 7 | 1 . 1 . 1 1 . . . . 1 2 . . . Mechanic 1 | . . . 1 . . . . . . . . . . . Operator 11 | . . . 1 2 . . . . . . 1 . 7 . Watcher 6 | . . 1 1 2 . . . . . . 1 1 . . Swarmer 20 | . . 4 2 . . . . . . . 8 . . 6 Grunt 65 | . . 15 13 9 4 2 . . 2 3 10 . . 7 Brawler 4 | . . 2 . 1 . . . . 1 . . . . . Duelist 3 | . . . 1 1 . 1 . . . . . . . . Protector 2 | . . . 2 . . . . . . . . . . . Sentry 39 | . . 8 5 5 4 . . . 1 3 10 . 1 2 Hunter 4 | . . . . 1 . . 1 . . . . . . 2 Programmer 7 | . . . . . 4 1 . . . 1 . . . 1 Cetus Guard 5 | . . . . . . . . . . . . 5 . . Enhanced Grunt 2 | . . . . . . . . . . . . . 2 . Samaritan 1 | . . . . . . 1 . . . . . . . . Thug 2 | . . . . . . . . . . . 1 . 1 . Savage 1 | . . . . . . . . . . . . . 1 . Best Kill Streak 12 | 1 . 11 7 7 3 3 1 . 3 4 12 3 2 6 Combat Bots Only 9 | . . 9 5 5 2 3 1 . 3 3 8 3 1 4 Max Kills in Single Turn 5 | 1 . 5 2 1 1 1 1 . 1 1 3 1 1 3 Gunslinging 1 | . . . . . . . . . . . 1 . . . Exploded 5 | . . 5 . . 1 . . . . . 2 . . . Melee . | . . . . . . . . . . . . . . . Uniques/NPCs Destroyed . | . . . . . . . . . . . . . . . Combat | -11 -10 -9 -9 -8 -7 -7 -7 -7 -6 -6 -6 -6 -6 -6 -------- Run | Yrd Mat Mat Sto Mat Fac Low Low Zio Pro Fac Ext Cet Arc Hub Hostile Shots Fired 1052 | . 11 90 58 63 126 21 42 . 49 55 264 18 7 248 Missed 349 | . 3 24 18 21 57 1 12 . 18 25 77 6 2 85 Hits 703 | . 8 66 40 42 69 20 30 . 31 30 187 12 5 163 Melee 4 | . . . . . . 2 . . 2 . . . . . Projectile 699 | . 8 66 40 42 69 18 30 . 29 30 187 12 5 163 Critical Strikes 29 | . . 4 1 4 1 2 . . 2 1 2 4 . 8 Part Disruptions 3 | . . . . . 1 . . . . . . . . 2 Damage Taken 9173 | . 67 899 534 545 670 284 329 . 570 250 1758 164 57 3046 Core 1255 | . . 77 73 64 108 . 17 . 59 18 93 33 12 701 Absorbed by Shields 1156 | . . . . 111 . 60 49 . . 45 354 172 61 304 Ignored by Resistances 99 | . . . . . . . . . . . . 80 19 . Regen/Repaired (Parts) 1034 | . . 109 . . 211 . . 714 . . . . . . Core Remaining (%) 84 | 100 100 . 62 88 . . . . 73 . . . . . Volleys Fired 505 | 7 . 76 57 66 31 9 3 . 17 22 86 23 58 50 Largest 4 | 2 . 3 3 3 4 4 4 . 4 4 4 4 4 4 Hottest 195 | 70 . 195 79 73 97 92 102 . 107 112 81 75 98 136 Shots Fired 1552 | 14 . 175 169 198 115 36 12 . 68 85 333 92 71 184 Gun 1483 | 14 . 172 167 198 114 36 12 . 68 84 328 92 17 181 Cannon 58 | . . . . . . . . . . 1 . . 54 3 Launcher 11 | . . 3 2 . 1 . . . . . 5 . . . Special . | . . . . . . . . . . . . . . . Kinetic 1392 | 7 . 88 167 198 114 36 12 . 68 84 328 92 17 181 Thermal 149 | 7 . 84 . . . . . . . 1 . . 54 3 Explosive 11 | . . 3 2 . 1 . . . . . 5 . . . Electromagnetic . | . . . . . . . . . . . . . . . Robot Hit Streak 44 | 6 . 12 20 44 26 26 3 . 13 10 16 18 9 9 Robot Miss Streak 14 | 2 . 14 2 3 2 1 1 . 2 1 12 2 3 6 Penetration Max 1 | . . . . . . . . . . . 1 1 . 1 Secondary Targets 19 | . . 2 3 1 . 1 . . 1 . 4 3 . 4 Max Gunslinging Chain 2 | . . 1 1 1 . 1 . . 1 . 2 1 . 1 Shots Hit Robots 1055 | 10 . 123 107 151 91 29 8 . 47 62 205 74 48 100 Core Hits 483 | 2 . 105 49 56 33 12 3 . 16 25 88 27 21 46 Critical Kills 9 | . . . 1 1 . . . . 1 . . 2 2 2 Critical Parts Destroyed 20 | . . . 1 1 2 . . . . . 3 4 . 9 Critical Strikes 31 | 1 . 1 2 2 2 . . . 1 . 3 6 2 11 Burn 2 | 1 . 1 . . . . . . . . . . . . Meltdown 2 | . . . . . . . . . . . . . 2 . Destroy 27 | . . . 2 2 2 . . . 1 . 3 6 . 11 Melee Attacks 17 | . . . . . 10 . 1 . . 6 . . . . Impact 4 | . . . . . 4 . . . . . . . . . Slashing 13 | . . . . . 6 . 1 . . 6 . . . . Piercing . | . . . . . . . . . . . . . . . Sneak Attacks 4 | . . . . . 2 . . . . 2 . . . . Combat Hostiles . | . . . . . . . . . . . . . . . Follow-up Attacks . | . . . . . . . . . . . . . . . Damage Inflicted 23523 | 100 . 2030 1868 2361 1827 489 91 . 833 1345 6128 1813 1448 3190 Guns 20254 | 100 . 1514 1867 2361 1529 489 91 . 833 1226 5154 1813 205 3072 Cannons 1243 | . . . . . . . . . . . . . 1243 . Explosions 1750 | . . 516 . . 149 . . . . . 974 . . 111 Melee 268 | . . . . . 149 . . . . 119 . . . . Ramming 8 | . . . 1 . . . . . . . . . . 7 Kinetic 19349 | 50 . 659 1867 2361 1529 489 91 . 833 1226 5154 1813 205 3072 Thermal 2343 | 50 . 1002 . . . . . . . . . . 1243 48 Explosive 1492 | . . 369 . . 149 . . . . . 974 . . . Electromagnetic 63 | . . . . . . . . . . . . . . 63 Impact . | . . . . . . . . . . . . . . . Slashing 268 | . . . . . 149 . . . . 119 . . . . Piercing . | . . . . . . . . . . . . . . . Highest Corruption 18 | . . . 1 . 1 . . . 5 1 3 3 10 18 Average Corruption 2 | . . . 1 . 1 . . . 5 1 2 3 4 8 Corruption Purged 14 | . . . . . 1 . . . . . . . 13 . Corruption Blocked . | . . . . . . . . . . . . . . . Effects 57 | . . . 4 . 2 . . . 1 10 22 8 6 4 Message Errors 13 | . . . . . . . . . . 5 4 2 1 1 Matter Fused 16 | . . . 2 . . . . . 1 1 6 2 3 1 Heat Flow Errors 6 | . . . 1 . . . . . . . 4 1 . . Energy Discharges 7 | . . . 1 . 1 . . . . 1 3 1 . . Parts Fused 1 | . . . . . . . . . . . 1 . . . Data Loss (minor) 4 | . . . . . 1 . . . . . 2 1 . . Data Loss (major) 2 | . . . . . . . . . . . 1 . 1 . Misfires 5 | . . . . . . . . . . 3 1 . 1 . Alerts 2 | . . . . . . . . . . . . 1 . 1 Misdirections 1 | . . . . . . . . . . . . . . 1 Overload Shots . | . . . . . . . . . . . . . . . Overflow Damage 172 | . . 55 . . 35 . . . . . 35 . 42 5 Projectiles 42 | . . . . . . . . . . . . . 42 . Explosions 95 | . . 55 . . . . . . . . 35 . . 5 Melee 35 | . . . . . 35 . . . . . . . . . Knockbacks . | . . . . . . . . . . . . . . . Impact . | . . . . . . . . . . . . . . . Kinetic . | . . . . . . . . . . . . . . . Secondary . | . . . . . . . . . . . . . . . Self-Inflicted Damage 175 | . . 76 . . . . . . . . . . . 99 Shots 3 | . . 2 . . . . . . . . . . . 1 Rammed 1 | . . . 1 . . . . . . . . . . . Targets Rammed 2 | . . . 1 . . . . . . . . . . 1 Kicked 1 | . . . . . . . . . . . . . . 1 Crushed . | . . . . . . . . . . . . . . . Highest Temperature 316 | 110 . 255 230 48 108 86 86 . 316 78 215 245 216 261 Average Temperature 59 | 55 . 89 29 12 41 23 50 . 119 22 55 39 62 93 Received Heat Transfer 2112 | . . 456 216 258 99 95 12 . 135 66 367 8 8 392 Effects 2 | . . . . . . . . . 1 . . . . 1 Interference 2 | . . . . . . . . . 1 . . . . 1 Siege Activations . | . . . . . . . . . . . . . . . Martial Activations . | . . . . . . . . . . . . . . . Shielding Activations . | . . . . . . . . . . . . . . . Robots Disrupted . | . . . . . . . . . . . . . . . Combat Hostiles . | . . . . . . . . . . . . . . . Robots Corrupted . | . . . . . . . . . . . . . . . Combat Hostiles . | . . . . . . . . . . . . . . . Parts Fried . | . . . . . . . . . . . . . . . Impact Corruptions . | . . . . . . . . . . . . . . . Robots Melted 2 | . . . . . . . . . . . . . 2 . Combat Hostiles . | . . . . . . . . . . . . . . . Parts Melted 7 | . . . . . . . . . . . . . 7 . Heat Transferred 3844 | 222 . 1522 . . . . . . . . . . 2000 100 Parts Sabotaged . | . . . . . . . . . . . . . . . Parts Stolen . | . . . . . . . . . . . . . . . Parts Stripped . | . . . . . . . . . . . . . . . Power Chain Reactions 1 | . . . . . . . . . . . . . . 1 Alert | -11 -10 -9 -9 -8 -7 -7 -7 -7 -6 -6 -6 -6 -6 -6 ------- Run | Yrd Mat Mat Sto Mat Fac Low Low Zio Pro Fac Ext Cet Arc Hub Maximum Alert Level 2 | . . 1 2 1 . . . . . . 2 1 . 2 Low Security (%) 74 | 100 100 86 52 62 100 . . . . 100 26 98 100 55 Level 1 18 | . . 13 43 37 . . . . . . 40 1 . 32 Level 2 6 | . . . 3 . . . . . . . 33 . . 11 Level 3 . | . . . . . . . . . . . . . . . Level 4 . | . . . . . . . . . . . . . . . Level 5 . | . . . . . . . . . . . . . . . High Security . | . . . . . . . . . . . . . . . Max Security . | . . . . . . . . . . . . . . . Peak Influence 617 | 5 5 265 426 361 164 . . . . 144 584 209 157 617 Initial 174 | . . . 21 174 30 . . . . 33 29 161 4 . Average 127 | . . 90 175 187 42 . . . . 32 305 104 23 172 Influence Increases 6244 | 5 19 919 1099 685 433 100 60 . 128 288 1078 279 225 926 Destroy 0b10 Robot/C 3540 | . . 580 680 400 240 80 20 . 100 140 700 160 80 360 Destroy 0b10 Robot/NC 345 | 5 . 30 65 55 20 . . . . 25 70 10 35 30 Destroy Leader 804 | . . 154 162 134 92 20 10 . 20 56 74 . . 82 Allied During Kill 453 | . . . 150 14 . . . . 8 . 126 100 55 . Successful Hack 119 | . 19 29 14 5 35 . . . . . . . . 17 Disable Machine 390 | . . 30 . 30 15 . . . . 30 15 . 45 225 Destroy Structure 323 | . . 36 28 47 16 . . . . 7 33 9 10 137 Partial Spotted 30 | . . 15 . . . . . . . . . . . 15 Lose Combat Pursuer 240 | . . 45 . . 15 . 30 . . 30 60 . . 60 Influence Decreases 5684 | 5 19 868 736 1030 362 240 60 . 74 281 850 558 235 366 Entered New Map 548 | . . . 30 240 39 52 . . . 21 32 128 6 . Time Decay 3533 | 5 19 506 356 440 305 188 60 . 71 260 548 270 229 276 Lost Part 110 | . . . . 10 . . . . . . 10 . . 90 Lost Ally 513 | . . . 200 40 . . . . 3 . 110 160 . . Purge Threat 980 | . . 362 150 300 18 . . . . . 150 . . . Squads Dispatched 32 | . . 4 6 2 6 . . . . 3 4 . . 7 Investigation 7 | . . 2 2 1 1 . . . . . 1 . . . Extermination 7 | . . . . . 4 . . . . 2 . . . 1 Reinforcement 13 | . . 2 1 1 1 . . . . 1 3 . . 4 Assault 2 | . . . 2 . . . . . . . . . . . Garrison 3 | . . . 1 . . . . . . . . . . 2 Intercept . | . . . . . . . . . . . . . . . Searches Triggered . | . . . . . . . . . . . . . . . Construction Impeded 5 | . . 1 . . . . . . . . 2 . . 2 Haulers Reinforced 2 | . . . . . 1 . . . . 1 . . . . Active Scanning Responses . | . . . . . . . . . . . . . . . Cargo Convoy Interrupts . | . . . . . . . . . . . . . . . Stealth | -11 -10 -9 -9 -8 -7 -7 -7 -7 -6 -6 -6 -6 -6 -6 --------- Run | Yrd Mat Mat Sto Mat Fac Low Low Zio Pro Fac Ext Cet Arc Hub Distress Signals 16 | . 1 3 3 1 . . . . . 2 2 2 . 2 Communications Jammed . | . . . . . . . . . . . . . . . Distress Signals . | . . . . . . . . . . . . . . . Times Spotted 269 | . 8 38 37 23 16 4 3 . 5 10 43 10 29 43 Peak Tracking Total 12 | . 5 5 10 5 2 3 1 . 3 5 6 5 1 12 Tactical Retreats 13 | . . 1 . . 1 . 2 . . 2 3 . . 4 Traps | -11 -10 -9 -9 -8 -7 -7 -7 -7 -6 -6 -6 -6 -6 -6 ------- Run | Yrd Mat Mat Sto Mat Fac Low Low Zio Pro Fac Ext Cet Arc Hub Traps Triggered 3 | . . 1 . . 1 . . . . 1 . . . . Indirectly . | . . . . . . . . . . . . . . . Trap Hack Attempts . | . . . . . . . . . . . . . . . Triggered . | . . . . . . . . . . . . . . . Disarmed . | . . . . . . . . . . . . . . . Reprogrammed . | . . . . . . . . . . . . . . . Reused . | . . . . . . . . . . . . . . . Traps Extracted . | . . . . . . . . . . . . . . . Installed . | . . . . . . . . . . . . . . . Triggered . | . . . . . . . . . . . . . . . Machines | -11 -10 -9 -9 -8 -7 -7 -7 -7 -6 -6 -6 -6 -6 -6 ---------- Run | Yrd Mat Mat Sto Mat Fac Low Low Zio Pro Fac Ext Cet Arc Hub Machines Disabled 26 | . . 2 . 2 1 . . . . 2 1 . 3 15 Max in Single Turn 9 | . . 2 . 2 1 . . . . 1 . . 1 9 Network Hub 1 | . . . . . . . . . . . . . . 1 Energy Cycler 2 | . . . . . . . . . . . 2 . . . Machines Repaired . | . . . . . . . . . . . . . . . Machines Dismantled . | . . . . . . . . . . . . . . . Machines Sabotaged . | . . . . . . . . . . . . . . . Overloaded Fab Kills . | . . . . . . . . . . . . . . . Hacking | -11 -10 -9 -9 -8 -7 -7 -7 -7 -6 -6 -6 -6 -6 -6 --------- Run | Yrd Mat Mat Sto Mat Fac Low Low Zio Pro Fac Ext Cet Arc Hub Machines Accessed 44 | . 4 9 8 4 9 . 2 . . 2 1 2 . 3 Terminals 37 | . 4 8 8 4 6 . 1 . . . 1 2 . 3 Fabricators 1 | . . . . . 1 . . . . . . . . . Repair Stations 3 | . . 1 . . 2 . . . . . . . . . Recycling Units . | . . . . . . . . . . . . . . . Scanalyzers 1 | . . . . . . . . . . 1 . . . . Garrison Access 1 | . . . . . . . . . . 1 . . . . Total Hacks 113 | . 10 31 20 11 21 . 3 . . 4 2 3 . 8 Successful 43 | . 5 11 4 3 11 . 3 . . 2 . . . 4 Failed 69 | . 5 19 16 8 10 . . . . 2 2 3 . 4 Catastrophic 20 | . . 4 4 4 4 . . . . 1 1 . . 2 Database Lockouts 1 | . . 1 . . . . . . . . . . . . Manual 67 | . 10 20 12 11 6 . . . . . . 1 . 7 Terminals 95 | . 10 28 20 11 11 . 2 . . . 2 3 . 8 Fabricators 3 | . . . . . 3 . . . . . . . . . Repair Stations 10 | . . 3 . . 7 . . . . . . . . . Recycling Units . | . . . . . . . . . . . . . . . Scanalyzers 3 | . . . . . . . . . . 3 . . . . Garrison Access 1 | . . . . . . . . . . 1 . . . . Terminal Hacks 23 | . 3 7 4 2 2 . 3 . . . . . . 2 Record 2 | . . . . . . . 2 . . . . . . . Robot Analysis 3 | . 2 1 . . . . . . . . . . . . Open Door 4 | . . . 3 . . . 1 . . . . . . . Open DSF 1 | . . . . . 1 . . . . . . . . . Level Access Points 1 | . . . . . . . . . . . . . . 1 Branch Access Points 1 | . . 1 . . . . . . . . . . . . Unreport Threat 7 | . . 3 1 2 1 . . . . . . . . . Patrol Status 1 | . . . . . . . . . . . . . . 1 Hauler Manifests 2 | . 1 1 . . . . . . . . . . . . Registered Components 1 | . . 1 . . . . . . . . . . . . Fabricator Hacks 1 | . . . . . 1 . . . . . . . . . Network Status 1 | . . . . . 1 . . . . . . . . . Repair Station Hacks 7 | . . 2 . . 5 . . . . . . . . . Scan Component 4 | . . 1 . . 3 . . . . . . . . . Repair 3 | . . 1 . . 2 . . . . . . . . . Recycling Unit Hacks . | . . . . . . . . . . . . . . . Scanalyzer 2 | . . . . . . . . . . 2 . . . . Insert Component 1 | . . . . . . . . . . 1 . . . . Analyze 1 | . . . . . . . . . . 1 . . . . Garrison Access Hacks . | . . . . . . . . . . . . . . . Unauthorized Hacks 10 | . 2 2 . 1 3 . . . . . . . . 2 Terminals 9 | . 2 2 . 1 2 . . . . . . . . 2 Track 1 | . . . . . . . . . . . . . . 1 Assimilate 1 | . . . . . . . . . . . . . . 1 Botnet 7 | . 2 2 . 1 2 . . . . . . . . . Fabricators 1 | . . . . . 1 . . . . . . . . . Liberate 1 | . . . . . 1 . . . . . . . . . Repair Stations . | . . . . . . . . . . . . . . . Recycling Units . | . . . . . . . . . . . . . . . Scanalyzers . | . . . . . . . . . . . . . . . Garrison Access . | . . . . . . . . . . . . . . . Data Cores Recovered 2 | . . . 1 1 . . . . . . . . . . Used 1 | . . . 1 . . . . . . . . . . . Hacking Detections 40 | . 3 9 7 4 8 . 1 . . 1 1 3 . 3 Full Trace Events 10 | . 2 1 4 1 1 . . . . . 1 . . . Feedback Events 1 | . . . 1 . . . . . . . . . . . Corruption 1 | . . . 1 . . . . . . . . . . . Feedback Blocked . | . . . . . . . . . . . . . . . Robot Schematics Acquired . | . . . . . . . . . . . . . . . Robots Built . | . . . . . . . . . . . . . . . Authchips . | . . . . . . . . . . . . . . . Time . | . . . . . . . . . . . . . . . Total Robot Build Rating . | . . . . . . . . . . . . . . . Part Schematics Acquired 1 | . . . . . . . . . . 1 . . . . Parts Built . | . . . . . . . . . . . . . . . Authchips . | . . . . . . . . . . . . . . . Time . | . . . . . . . . . . . . . . . Total Part Build Rating . | . . . . . . . . . . . . . . . Parts Repaired 3 | . . 1 . . 2 . . . . . . . . . Time 138 | . . 26 . . 112 . . . . . . . . . Parts Recycled . | . . . . . . . . . . . . . . . Recycled Matter . | . . . . . . . . . . . . . . . Retrieved Matter . | . . . . . . . . . . . . . . . Retrieved Components . | . . . . . . . . . . . . . . . Parts Scanalyzed 1 | . . . . . . . . . . 1 . . . . Part Schematics Acquired 1 | . . . . . . . . . . 1 . . . . Parts Damaged . | . . . . . . . . . . . . . . . Bothacking | -11 -10 -9 -9 -8 -7 -7 -7 -7 -6 -6 -6 -6 -6 -6 ------------ Run | Yrd Mat Mat Sto Mat Fac Low Low Zio Pro Fac Ext Cet Arc Hub Used RIF Installer . | . . . . . . . . . . . . . . . Robots Hacked . | . . . . . . . . . . . . . . . Non-combat . | . . . . . . . . . . . . . . . Combat . | . . . . . . . . . . . . . . . Robot Hacks Applied . | . . . . . . . . . . . . . . . Relay Couplers Released . | . . . . . . . . . . . . . . . Fabnet Peak Effective % . | . . . . . . . . . . . . . . . Robots Rewired 14 | . . . . . . . . . . . 14 . . . Allies Hacked . | . . . . . . . . . . . . . . . Hacks Repelled . | . . . . . . . . . . . . . . . Allies | -11 -10 -9 -9 -8 -7 -7 -7 -7 -6 -6 -6 -6 -6 -6 -------- Run | Yrd Mat Mat Sto Mat Fac Low Low Zio Pro Fac Ext Cet Arc Hub Total Allies 35 | . . . 12 . . . . 4 . . 17 2 . . Largest Group 12 | . . . 10 2 . . . 4 4 . 12 12 4 . Highest-Rated Group 340 | . . . 110 62 . . . 109 109 . 340 340 239 . Highest-Rated Ally 96 | . . . 31 31 . . . 31 31 . 39 96 96 . Total Orders 9 | . . . . . . . . . . 7 2 . . . RETURN 9 | . . . . . . . . . . 7 2 . . . Ally Attacks 286 | . . . 87 15 . . . . 11 . 90 63 20 . Total Damage 4463 | . . . 1013 191 . . . . 248 . 1172 1023 816 . Kills 34 | . . . 13 3 . . . . 1 . 8 6 3 . Allies Corrupted . | . . . . . . . . . . . . . . . Allies Melted 2 | . . . . . . . . . . . . . 2 . Intel | -11 -10 -9 -9 -8 -7 -7 -7 -7 -6 -6 -6 -6 -6 -6 ------- Run | Yrd Mat Mat Sto Mat Fac Low Low Zio Pro Fac Ext Cet Arc Hub Active Infowar (turns) 7689 | . . . . 476 1389 498 719 1015 538 1251 393 . 530 880 Optics 1409 | . . . . . . . . . . . . . 529 880 Sensors 5581 | . . . . . 103 498 719 1015 538 1251 393 . 530 534 Seismic 1762 | . . . . 476 1286 . . . . . . . . . Robot Analysis Total 3 | . 2 1 . . . . . . . . . . . . Derelict Logs Recovered 7 | . . . . . . 2 2 1 2 . . . . . Drone Launches 10 | . . . . . . . . . . 7 3 . . . Drone Recoveries 9 | . . . . . . . . . . 7 2 . . . Exploration | -11 -10 -9 -9 -8 -7 -7 -7 -7 -6 -6 -6 -6 -6 -6 ------------- Run | Yrd Mat Mat Sto Mat Fac Low Low Zio Pro Fac Ext Cet Arc Hub Turns Passed 14319 | 97 280 1567 886 1096 1461 582 997 1015 561 1251 1855 598 1166 907 Spaces Moved 8982 | 45 172 754 372 690 1038 458 789 864 419 1013 1144 360 286 578 Core 55 | 5 . . . . . . . . . . . . . 50 Treads 1343 | 40 172 754 372 5 . . . . . . . . . . Legs 1382 | . . . . . . . . . . . 208 360 286 528 Wheels 6202 | . . . . 685 1038 458 789 864 419 1013 936 . . . Hover . | . . . . . . . . . . . . . . . Flight . | . . . . . . . . . . . . . . . Fastest Speed 50 | 50 160 160 160 115 115 115 115 115 115 100 100 120 120 50 Average Speed 122 | 152 160 160 160 115 115 115 115 115 115 106 118 120 147 113 Slowest Speed 260 | 160 160 160 240 160 115 115 115 115 130 115 260 120 190 120 Overloaded Moves . | . . . . . . . . . . . . . . . Propulsion Burnouts . | . . . . . . . . . . . . . . . Robots Hopped . | . . . . . . . . . . . . . . . Potential Cave-ins 1 | . . . . . . . . . . . . . . 1 Cave-ins Triggered . | . . . . . . . . . . . . . . . Exploration Rate (%) 55 | 4 39 61 60 46 26 65 77 86 59 19 84 76 90 44 Regions Visited 14 Branch Regions 9 Pre-discovered Areas 3 | . . . . . . . 1 2 . . . . . . Known Exits Taken 10 | . . 1 . . 1 1 1 1 1 1 1 1 1 . Unknown Exits Taken 4 | 1 1 . 1 1 . . . . . . . . . . Scrap Searched 8 | . . . . . . 1 2 4 1 . . . . . Spaces Dug 25 | . . . 10 . 6 . 1 . . 5 . . . 3 Terrain Destroyed 374 | . . 35 20 56 12 . 1 . . 5 45 1 9 190 Melee 11 | . . . . . 6 . 1 . . 4 . . . . Projectile 51 | . . . . . . . . . . 1 5 1 9 35 AOE 312 | . . 35 20 56 6 . . . . . 40 . . 155 Terrain Rammed . | . . . . . . . . . . . . . . . Walls Destroyed . | . . . . . . . . . . . . . . . Machines Disabled . | . . . . . . . . . . . . . . . Actions | -11 -10 -9 -9 -8 -7 -7 -7 -7 -6 -6 -6 -6 -6 -6 --------- Run | Yrd Mat Mat Sto Mat Fac Low Low Zio Pro Fac Ext Cet Arc Hub Total 11346 | 58 176 997 551 851 1223 489 868 886 453 1143 1488 485 968 710 Wait 1256 | . . 92 51 42 84 14 72 18 8 45 93 85 591 61 Move 8968 | 44 171 753 371 689 1037 457 788 863 418 1012 1143 359 285 578 Hop . | . . . . . . . . . . . . . . . Pick Up 86 | 1 2 16 13 11 15 . . 2 . 14 3 5 3 1 Fast Attach 57 | 6 2 8 5 4 5 2 . . 3 3 8 2 7 2 Attach 26 | . . 1 . 4 5 . . . 2 2 1 1 2 8 Detach 16 | . 1 3 1 3 1 . . . 1 1 1 1 3 . Swap 137 | . . 21 19 12 14 4 3 1 2 17 27 2 9 6 Drop 170 | . . 27 33 20 21 3 . 2 2 21 21 7 10 3 Fire 505 | 7 . 76 57 66 31 9 3 . 17 22 86 23 58 50 Melee 17 | . . . . . 10 . 1 . . 6 . . . . Ram . | . . . . . . . . . . . . . . . Kick 1 | . . . . . . . . . . . . . . 1 Crush 1 | . . . 1 . . . . . . . . . . . Escape Stasis . | . . . . . . . . . . . . . . . Rewire 106 | . . . . . . . 1 . . . 105 . . . Trap . | . . . . . . . . . . . . . . . Miscellaneous . | . . . . . . . . . . . . . . . Route ------- -11/Scrapyard -10/Materials -9/Materials (discovered 4 exits: *Mat x2 / *Min / *Sto) -9/Storage -8/Materials (discovered 2 exits: *Fac x2) -7/Factory -7/Lower Caves -7/Lower Caves (discovered 2 exits: *Fac / *Zio) -7/Zion -6/Proximity Caves -6/Factory (discovered 5 exits: *Fac / *Low x2 / *Ext x2) -6/Extension (discovered 3 exits: *Fac x2 / *Cet) -6/Cetus (discovered 3 exits: *Fac x2 / *Arc) -6/Archives (discovered 3 exits: *Fac / *Hub x2) -6/Hub_04(d) (discovered 4 exits: *Fac x4) History --------- Turn | Location | Event 18 | -11/Scrapyard | Discovered new exit (range 13) 98 | -11/Scrapyard | Entered Materials 260 | -10/Materials | Discovered new exit (range 3) 310 | -10/Materials | Build established: Mutant 378 | -10/Materials | Entered another Materials area 378 | -9/Materials | Evolved 2 slots: Utility x1, Weapon x1 520 | -9/Materials | Destroyed 9 combat bots 677 | -9/Materials | Central database locked down 810 | -9/Materials | Discovered new exit (range 12) 825 | -9/Materials | Build established: Tank 1052 | -9/Materials | Discovered new exit (range 7) 1262 | -9/Materials | Discovered new exit (range 11) 1393 | -9/Materials | Build established: Scavenger-Tank 1481 | -9/Materials | Discovered new exit (range 16) 1546 | -9/Materials | Repaired Lgt. Treads 1725 | -9/Materials | Identified exit to Mines 1725 | -9/Materials | Identified exit to Storage 1945 | -9/Materials | Entered Storage 2479 | -9/Storage | Assisted by bots powering up and referring to "LRC-V3" 2640 | -9/Storage | Found Prototype Processor 2640 | -9/Storage | Identified Exp. Targeting Computer 2720 | -9/Storage | Lost 4 allies 2735 | -9/Storage | Met a pair of Derelict thieves 2767 | -9/Storage | Garrison activated, responded to threat 2810 | -9/Storage | Discovered new exit (range 8) 2820 | -9/Storage | Lost 5 allies 2831 | -9/Storage | Entered Materials 2831 | -8/Materials | Accompanied by 2 allies 2831 | -8/Materials | Evolved 2 slots: Propulsion x1, Utility x1 3124 | -8/Materials | Build established: Tank 3144 | -8/Materials | Discovered new exit (range 12) 3591 | -8/Materials | Discovered new exit (range 11) 3787 | -8/Materials | Build established: Gunner 3927 | -8/Materials | Entered Factory 3927 | -7/Factory | Evolved 2 slots: Utility x1, Weapon x1 4253 | -7/Factory | Identified exit to DSF 4717 | -7/Factory | Repaired Broken Arm. Huge Wheel 4941 | -7/Factory | Repaired Imp. Assault Rifle 5033 | -7/Factory | Discovered new exit (range 7) 5038 | -7/Factory | Identified exit to Lower Caves 5388 | -7/Factory | Entered Lower Caves 5764 | -7/Lower Caves | Discovered new exit (range 11) 5775 | -7/Lower Caves | Identified exit to Lower Caves 5784 | -7/Lower Caves | Build established: Skirmisher 5806 | -7/Lower Caves | Learned Factory security intel 5873 | -7/Lower Caves | Learned location of 1 exit from Factory 5970 | -7/Lower Caves | Entered another Lower Caves area 5987 | -7/Lower Caves | Learned location of Extension (-6) 6205 | -7/Lower Caves | Discovered new exit (range 14) 6220 | -7/Lower Caves | Identified exit to Factory 6339 | -7/Lower Caves | Identified exit to Zion 6384 | -7/Lower Caves | Spotted B-75 Beast 6967 | -7/Lower Caves | Entered Zion 7028 | -7/Zion | Discovered new exit (range 14) 7043 | -7/Zion | Visited the Megawrench Repair Shop 7047 | -7/Zion | Megawrench repaired 9 parts 7179 | -7/Zion | Learned Factory terminal intel 7266 | -7/Zion | Given A8's code to call for help 7267 | -7/Zion | Learned location of Quarantine (-3) 7269 | -7/Zion | Learned Factory emergency access door positions 7487 | -7/Zion | Given the Hacking Drone Bay 7490 | -7/Zion | Found Prototype Device 7532 | -7/Zion | Gained Derelict followers 7739 | -7/Zion | Received a hallucinogenic algorithm 7791 | -7/Zion | Met Imprinter 7963 | -7/Zion | Identified exit to Proximity Caves 7982 | -7/Zion | Entered Proximity Caves 7982 | -6/Proximity Caves | Accompanied by 4 allies 8002 | -6/Proximity Caves | Spotted B-75 Beast 8039 | -6/Proximity Caves | Allies destroyed B-75 Beast 8312 | -6/Proximity Caves | Attracted the attention of an 0b10 checkpoint 8418 | -6/Proximity Caves | Learned Factory garrison access intel 8543 | -6/Proximity Caves | Entered Factory 8543 | -6/Factory | Evolved 2 slots: Propulsion x1, Utility x1 8544 | -6/Factory | Identified exit to Extension 8547 | -6/Factory | Loaded intel: 28 terminal locations 8548 | -6/Factory | Loaded intel: 4 garrison access locations 8621 | -6/Factory | Identified Hacking Drone Bay 8626 | -6/Factory | Identified exit to Lower Caves 9314 | -6/Factory | Discovered new exit (range 6) 9321 | -6/Factory | Identified exit to Factory 9794 | -6/Factory | Entered Extension 10000 | -6/Extension | Energy Cycler disabled 10000 | -6/Extension | Rescued a captive Derelict 10001 | -6/Extension | Rescued a captive Derelict 10001 | -6/Extension | Rescued a captive Derelict 10002 | -6/Extension | Rescued a captive Derelict 10003 | -6/Extension | Rescued a captive Derelict 10006 | -6/Extension | Rescued a captive Derelict 10007 | -6/Extension | Rescued a captive Derelict 10026 | -6/Extension | Rescued a captive Derelict 10142 | -6/Extension | Spotted B-75 Beast 10164 | -6/Extension | Spotted B-75 Beast 10186 | -6/Extension | Allies destroyed B-75 Beast 10198 | -6/Extension | Allies destroyed B-75 Beast 10211 | -6/Extension | Discovered exit to Factory (range 15) 10225 | -6/Extension | Extracted ID and sensor layout for unrecognized location from A7's data core 10236 | -6/Extension | Build established: Tank 10319 | -6/Extension | Disrupted transfer network 10384 | -6/Extension | Destroyed 8 combat bots 10410 | -6/Extension | Discovered new exit (range 16) 10411 | -6/Extension | Discovered exit to Factory (range 15) 11074 | -6/Extension | Build established: Commander-Tank 11418 | -6/Extension | Identified exit to Cetus 11649 | -6/Extension | Entered Cetus 11649 | -6/Cetus | Accompanied by 12 allies 11671 | -6/Cetus | Spotted Cetus Guard 11674 | -6/Cetus | Spotted Cetus Guard 11675 | -6/Cetus | Spotted Cetus Guard 11679 | -6/Cetus | Destroyed Cetus Guard 11688 | -6/Cetus | Spotted Cetus Guard 11692 | -6/Cetus | Allies destroyed Cetus Guard 11693 | -6/Cetus | Destroyed Cetus Guard 11705 | -6/Cetus | Allies destroyed Cetus Guard 11735 | -6/Cetus | Lost 4 allies 11857 | -6/Cetus | Discovered exit to Factory (range 15) 11945 | -6/Cetus | Discovered new exit (range 15) 12005 | -6/Cetus | Spotted Cetus Guard 12006 | -6/Cetus | Spotted Cetus Guard 12011 | -6/Cetus | Spotted Cetus Guard 12014 | -6/Cetus | Spotted Cetus Guard 12016 | -6/Cetus | Destroyed Cetus Guard 12030 | -6/Cetus | Allies destroyed Cetus Guard 12030 | -6/Cetus | Destroyed Cetus Guard 12037 | -6/Cetus | Destroyed Cetus Guard 12050 | -6/Cetus | Discovered exit to Factory (range 15) 12067 | -6/Cetus | Met Revision 17 12082 | -6/Cetus | Lost 5 allies 12207 | -6/Cetus | Enhanced Grunt warped into view, answering call for help 12207 | -6/Cetus | Enhanced Grunt warped into view, answering call for help 12235 | -6/Cetus | Identified exit to Archives 12247 | -6/Cetus | Entered Archives 12247 | -6/Archives | Accompanied by 4 allies 12309 | -6/Archives | Discovered new exit (range 16) 12328 | -6/Archives | Discovered exit to Factory (range 14) 12355 | -6/Archives | Discovered new exit (range 16) 12378 | -6/Archives | Build established: Scavenger-Tank 12646 | -6/Archives | Found Prototype Device 12646 | -6/Archives | Identified Exp. Thermal Shield 13137 | -6/Archives | System corruption reached 10% 13176 | -6/Archives | Build established: Scavenger-Skirmisher 13408 | -6/Archives | Identified exit to Hub_04(d) 13413 | -6/Archives | Entered Hub_04(d) 13960 | -6/Hub_04(d) | Build established: Scavenger-Tank 14214 | -6/Hub_04(d) | Network Hub disabled 14214 | -6/Hub_04(d) | Garrison activated, responded to threat 14235 | -6/Hub_04(d) | Spotted Lightning 14240 | -6/Hub_04(d) | Spotted Lightning 14246 | -6/Hub_04(d) | Disrupted transfer network 14246 | -6/Hub_04(d) | Spotted Lightning 14256 | -6/Hub_04(d) | Spotted Lightning 14293 | -6/Hub_04(d) | Released all parts (13) 14301 | -6/Hub_04(d) | Core integrity fell below 50% 14305 | -6/Hub_04(d) | Spotted Lightning 14311 | -6/Hub_04(d) | Core integrity fell below 20% 14316 | -6/Hub_04(d) | Spotted Lightning 14316 | -6/Hub_04(d) | Spotted Lightning 14320 | -6/Hub_04(d) | Lost 9 parts (1p3n1u4w) 14320 | -6/Hub_04(d) | Destroyed by Lightning with EMDS Last Messages --------------- 14293_ Released Enh. Flexi-carbon Leg. 14293_ Released Carbon-fiber Leg. 14293_ Released Imp. Heavy Machine Gun. 14293_ EMDS Slug penetrates Wall. 14294_ Acquired 21 matter. 14296_ Penetrated by EMDS Slug. 14298_ Acquired 62 matter. 14298_ Penetrated by EMDS Slug. 14300_ Control Node disabled. 14300_ Acquired 84 matter. 14300_ Penetrated by EMDS Slug. 14300_ Control Node disabled. 14301_ System corrupted: Matter fused (-6). 14305_ Acquired 20 matter. 14306_ Acquired 28 matter. 14307_ EMDS Slug penetrates Control Node. 14308_ Penetrated by EMDS Slug. 14310_ Acquired Imp. EM Pulse Cannon. 14311_ Dropped Imp. EM Pulse Cannon. 14316_ Penetrated by EMDS Slug. Map ----- +----------------------------------------------------+ | ?????????????????????????????????????????????????? | | ?????????????????????????????????????????????????? | | ?????????????????????????????????????????????????? | | ?????????????????????????????????????????????????? | | ?????????????????????????????????????????????????? | | ?????????????????????????????????????????????????? | | ?????????????????????????????????????????????????? | | ?????????????????????????????????????????########? | | ????????????????????????????????????????## [ | | ????????????????????????????????????????# *! "" | | ?????????????????????????????????????????# *! "" | | ?????????????#############???????????????# ! ! "" | | ?????????????# ## ###????????????# "" | | ?????????????#! ## # ##???????????# "T" | | ?????????????# ######??????????### """ | | ?????????????# # *################ " ## | | ?????????????# " " + =]! = %= # | | ?????????????# " " # !] ] = == | | ?????????????# " " "T" # ################ =* | | ?????????????# ## ######### # "" | | ?????????#########+##+### # # "" # | | ?????????# #?# # """ =# ??""" # | | ?????????# #?# # #?? T" # | | ?????????# """" ### # """ #? """ + ! | | ?????????# """" + # #? "" # " | | ?????????# """" ###@ + """ # ? # " | | ?????????# """" #?# # # """ ?###### | | ?????????# "" #?# h# """ #? ???????? | | ?????????# """" """ ### # #######???????? | | ?????????# """" T" ###h # "" #?????????????? | | ########## """" """ #?# # #?????????????? | | # # """" "" #?# #########?????????????? | | # # #?# #??########???????????? | | # = #######/######## #??# #???????????? | | # + A#??# """ #???????????? | | # ######% = ik#??#] #???????????? | | # #????# ######### #??# "T" #???????????? | | # #?####+######??# #??# """ #???????????? | | ?? #?# % #?## ##?# #???????????? | | ???? ??# ###= #######+### ""?""??? | | ######+##### +[%!= + """""""?? | | # # ###[ < + """"" ?? | | # + #?# #######+### """ # | | # *[# ####+##### #??????? # | | ##########%# ! # ##! """"#???????????? | | ?????????#!# ! # " " " ## """"#???????????? | | ?????????# ####+###### " " " ## """"#???????????? | | ?????????# #??# #????# " " " ##] """"#???????????? | | ????????# #??# #????# !## #???????????? | | ???????# #??# #????# " "!"####+###???????????? | +----------------------------------------------------+ Best States ------------- Heat Dissipation 64 Energy Generation 19 Energy Capacity 815 Matter Stores 300 Matter Capacity 300 Sight Range 22 Robot Scan Range 15 Terrain Scan Density 10 Armor Coverage 675 Resistance: KI 20 Evasion (%) 55 Targeting Accuracy 12 Recoil Reduction 3 Item Schematics ----------------- Prc. Assault Rifle | -6/Factory | Scanalyzed Robot Schematics ------------------ None Fabricated ------------ Nothing Repaired ---------- Lgt. Treads | 22% | -9/Materials Arm. Huge Wheel | 38% | -7/Factory | Broken Imp. Assault Rifle | 59% | -7/Factory Alien Tech Used ----------------- None Achievements -------------- Help From High Places Challenges ------------ None Game ------ Seed BurstGuidedAmplifier Manual? 0 Play Time 02:35:52 Cumulative 122.9 hours Start 2025.08.09 @ 13:52:12 End 2025.08.09 @ 18:12:59 Sessions 1 Manual Loads 0 Difficulty Rogue Special Mode None Game No. 108 Rogue 108 Adventurer 0 Explorer 0 Win Type - Total 4 Types 4/0/0/0/0/0/0/0/0/0 Lore% 30 Gallery% 52 Achievement% 48 Wizard Run 0 Options --------- Layout 2 ASCII 0 Keyboard 1 Movement Arrows Keybinds 0 Fullscreen 1 Font 32/Tamsyn Map View 50x44 Zoom Use 0% Tactical HUD 1 Map Filters NONE Filters NONE Steam 1 RUN: 546349c9-1e97-4909-abca-b70f8f73a81f